lending/lending_fUSD_20250516
["ID","MTS","AMOUNT","RATE_DAILY","PERIOD"]
[361291434,1747427439038,-400.0,0.00016438,2]
[361291435,1747427439048,-577.21,0.00016438,2]
[361291436,1747427439057,-400.0,0.00016438,2]
[361291437,1747427439066,-400.0,0.00016438,2]
[361291438,1747427439076,-714.1,0.00016438,2]
[361291439,1747427439085,-400.0,0.00016438,2]
[361291440,1747427439094,-168.41758747,0.00016438,2]
[361291441,1747427439104,-450.0,0.00016438,2]
[361291442,1747427439113,-400.0,0.00016438,2]
[361291443,1747427439123,-400.0,0.00016438,2]
[361291444,1747427439132,-400.0,0.00016438,2]
[361291445,1747427439141,-400.0,0.00016438,2]
[361291446,1747427439151,-400.0,0.00016438,2]
[361291447,1747427439160,-400.0,0.00016438,2]
[361291448,1747427439169,-400.0,0.00016438,2]
[361291449,1747427439178,-400.0,0.00016438,2]
[361291450,1747427439187,-400.0,0.00016438,2]
[361291451,1747427439195,-579.67,0.00016438,2]
[361291452,1747427439204,-400.0,0.00016438,2]
[361291453,1747427439213,-400.0,0.00016438,2]
[361291454,1747427439223,-400.0,0.00016438,2]
[361291455,1747427439232,-249.33307175,0.00016438,2]
[361291456,1747427439240,-400.0,0.00016438,2]
[361291457,1747427439250,-400.0,0.00016438,2]
[361291458,1747427439259,-540.83,0.00016438,2]
[361291459,1747427439268,-742.11,0.00016438,2]
[361291460,1747427439277,-400.0,0.00016438,2]
[361291461,1747427439285,-400.0,0.00016438,2]
[361291462,1747427439294,-400.0,0.00016438,2]
[361291463,1747427439303,-487.54,0.00016438,2]
[361291464,1747427439312,-400.0,0.00016438,2]
[361291465,1747427439321,-400.0,0.00016438,2]
[361291466,1747427439330,-400.0,0.00016438,2]
[361291467,1747427439339,-400.0,0.00016438,2]
[361291468,1747427439347,-367.9457591,0.00016438,2]
[361291469,1747427439357,-322.64,0.00016438,2]
[361291470,1747427439366,-180.73552609,0.00016438,2]
[361291471,1747427439375,-400.0,0.00016438,2]
[361291472,1747427439385,-400.0,0.00016438,2]
[361291473,1747427439394,-400.0,0.00016438,2]
[361291474,1747427439404,-450.0,0.00016438,2]
[361291475,1747427439413,-400.0,0.00016438,2]
[361291476,1747427439422,-150.55639888,0.00016438,2]
[361291477,1747427439432,-400.0,0.00016438,2]
[361291478,1747427439441,-400.0,0.00016438,2]
[361291479,1747427439451,-400.0,0.00016438,2]
[361291481,1747427439460,-400.0,0.00016438,2]
[361291483,1747427439469,-400.0,0.00016438,2]
[361291486,1747427439478,-400.0,0.00016438,2]
[361291488,1747427439487,-400.0,0.00016438,2]
[361291490,1747427439496,-400.0,0.00016438,2]
[361291491,1747427439506,-658.41,0.00016438,2]
[361291492,1747427439515,-400.0,0.00016438,2]
[361291493,1747427439524,-400.0,0.00016438,2]
[361291494,1747427439533,-400.0,0.00016438,2]
[361291495,1747427439543,-400.0,0.00016438,2]
[361291496,1747427439553,-400.0,0.00016438,2]
[361291497,1747427439563,-400.0,0.00016438,2]
[361291498,1747427439572,-571.61,0.00016438,2]
[361291499,1747427439581,-400.0,0.00016438,2]
[361291500,1747427439590,-400.0,0.00016438,2]
[361291501,1747427439600,-400.0,0.00016438,2]
[361291502,1747427439610,-286.24062387,0.00016438,2]
[361291503,1747427439619,-956.67,0.00016438,2]
[361291504,1747427439628,-460.56,0.00016438,2]
[361291505,1747427439642,-400.0,0.00016438,2]
[361291506,1747427439652,-400.0,0.00016438,2]
[361291507,1747427439662,-400.0,0.00016438,2]
[361291508,1747427439671,-400.0,0.00016438,2]
[361291509,1747427439681,-400.0,0.00016438,2]
[361291510,1747427439690,-400.0,0.00016438,2]
[361291511,1747427439700,-400.0,0.00016438,2]
[361291512,1747427439710,-415.0,0.00016438,2]
[361291513,1747427439719,-441.71,0.00016438,2]
[361291514,1747427439728,-400.0,0.00016438,2]
[361291515,1747427439737,-213.33517367,0.00016438,2]
[361291516,1747427439746,-450.0,0.00016438,2]
[361291517,1747427439755,-400.0,0.00016438,2]
[361291518,1747427439764,-400.0,0.00016438,2]
[361291519,1747427439773,-400.0,0.00016438,2]
[361291520,1747427439783,-400.0,0.00016438,2]
[361291521,1747427439791,-400.0,0.00016438,2]
[361291522,1747427439802,-400.0,0.00016438,2]
[361291523,1747427439811,-463.3,0.00016438,2]
[361291524,1747427439820,-400.0,0.00016438,2]
[361291525,1747427439829,-450.0,0.00016438,2]
[361291526,1747427439838,-450.0,0.00016438,2]
[361291527,1747427439848,-423.61,0.00016438,2]
[361291528,1747427439857,-1107.82,0.00016438,2]
[361291529,1747427439866,-483.3,0.00016438,2]
[361291530,1747427439877,-400.0,0.00016438,2]
[361291531,1747427439887,-450.0,0.00016438,2]
[361291532,1747427439896,-450.0,0.00016438,2]
[361291533,1747427439906,-400.0,0.00016438,2]
[361291534,1747427439915,-582.75,0.00016438,2]
[361291535,1747427439924,-470.97,0.00016438,2]
[361291536,1747427439933,-400.0,0.00016438,2]
[361291537,1747427439943,-450.0,0.00016438,2]
[361291538,1747427439952,-442.69,0.00016438,2]
[361291539,1747427439961,-400.0,0.00016438,2]
[361291540,1747427439971,-400.0,0.00016438,2]
[361291541,1747427439980,-760.5,0.00016438,2]
[361291542,1747427439990,-728.2,0.00016438,2]
[361291543,1747427439999,-613.68,0.00016438,2]
[361291544,1747427440008,-400.0,0.00016438,2]
[361291545,1747427440018,-450.0,0.00016438,2]
[361291546,1747427440027,-400.0,0.00016438,2]
[361291547,1747427440037,-400.0,0.00016438,2]
[361291548,1747427440046,-572.46,0.00016438,2]
[361291549,1747427440055,-450.0,0.00016438,2]
[361291550,1747427440064,-450.0,0.00016438,2]
[361291551,1747427440073,-450.0,0.00016438,2]
[361291552,1747427440082,-450.0,0.00016438,2]
[361291553,1747427440091,-400.0,0.00016438,2]
[361291554,1747427440101,-400.0,0.00016438,2]
[361291555,1747427440110,-400.0,0.00016438,2]
[361291556,1747427440119,-346.68988639,0.00016438,2]
[361291557,1747427440128,-159.558871,0.00016438,2]
[361291558,1747427440137,-400.0,0.00016438,2]
[361291559,1747427440147,-400.0,0.00016438,2]
[361291560,1747427440156,-400.0,0.00016438,2]
[361291561,1747427440165,-482.83,0.00016438,2]
[361291562,1747427440173,-287.007414,0.00016438,2]
[361291563,1747427440182,-154.118232,0.00016438,2]
[361291564,1747427440191,-400.0,0.00016438,2]
[361291565,1747427440201,-609.5,0.00016438,2]
[361291566,1747427440210,-400.0,0.00016438,2]
[361291567,1747427440219,-900.8,0.00016438,2]
[361291568,1747427440229,-400.0,0.00016438,2]
[361291569,1747427440239,-400.0,0.00016438,2]
[361291570,1747427440248,-400.0,0.00016438,2]
[361291571,1747427440257,-400.0,0.00016438,2]
[361291572,1747427440267,-400.0,0.00016438,2]
[361291573,1747427440276,-400.0,0.00016438,2]
[361291574,1747427440284,-400.0,0.00016438,2]
[361291575,1747427440294,-400.0,0.00016438,2]
[361291576,1747427440303,-400.0,0.00016438,2]
[361291577,1747427440311,-152.569965,0.00016438,2]
[361291578,1747427440320,-400.0,0.00016438,2]
[361291579,1747427440330,-424.84,0.00016438,2]
[361291580,1747427440340,-400.0,0.00016438,2]
[361291581,1747427440349,-450.0,0.00016438,2]
[361291582,1747427440359,-450.0,0.00016438,2]
[361291583,1747427440369,-400.0,0.00016438,2]
[361291584,1747427440378,-400.0,0.00016438,2]
[361291585,1747427440387,-400.0,0.00016438,2]
[361291586,1747427440396,-450.0,0.00016438,2]
[361291587,1747427440405,-400.0,0.00016438,2]
[361291588,1747427440414,-400.0,0.00016438,2]
[361291589,1747427440423,-450.0,0.00016438,2]
[361291590,1747427440433,-450.0,0.00016438,2]
[361291591,1747427440442,-400.0,0.00016438,2]
[361291592,1747427440452,-400.0,0.00016438,2]
[361291593,1747427440461,-450.0,0.00016438,2]
[361291594,1747427440470,-254.10515173,0.00016438,2]
[361291595,1747427440479,-885.35,0.00016438,2]
[361291596,1747427440488,-450.0,0.00016438,2]
[361291597,1747427440499,-400.0,0.00016438,2]
[361291598,1747427440508,-162.567544,0.00016438,2]
[361291599,1747427440517,-400.0,0.00016438,2]
[361291600,1747427440527,-658.8,0.00016438,2]
[361291601,1747427440536,-1294.2,0.00016438,2]
[361291602,1747427440545,-462.6,0.00016438,2]
[361291603,1747427440555,-400.0,0.00016438,2]
[361291604,1747427440564,-175.05477104,0.00016438,2]
[361291605,1747427440572,-400.0,0.00016438,2]
[361291606,1747427440581,-450.0,0.00016438,2]
[361291607,1747427440590,-450.0,0.00016438,2]
[361291608,1747427440600,-400.0,0.00016438,2]
[361291609,1747427440609,-450.0,0.00016438,2]
[361291610,1747427440618,-465.63,0.00016438,2]
[361291611,1747427440628,-450.0,0.00016438,2]
[361291612,1747427440643,-450.0,0.00016438,2]
[361291613,1747427440652,-199.6843948,0.00016438,2]
[361291614,1747427440901,-447.96,0.00016438,2]
[361291615,1747427440911,-452.24,0.00016438,2]
[361291616,1747427440921,-178.69294257,0.00016438,2]
[361291617,1747427440930,-400.0,0.00016438,2]
[361291618,1747427440939,-450.0,0.00016438,2]
[361291619,1747427440949,-400.0,0.00016438,2]
[361291620,1747427440959,-400.0,0.00016438,2]
[361291621,1747427440969,-302.78592141,0.00016438,2]
[361291622,1747427440979,-450.0,0.00016438,2]
[361291623,1747427440988,-450.0,0.00016438,2]
[361291624,1747427440998,-215.07010608,0.00016438,2]
[361291625,1747427441007,-400.0,0.00016438,2]
[361291626,1747427441018,-1568.85,0.00016438,2]
[361291627,1747427441028,-400.0,0.00016438,2]
[361291628,1747427441038,-400.0,0.00016438,2]
[361291629,1747427441047,-966.99,0.00016438,2]
[361291630,1747427441056,-400.0,0.00016438,2]
[361291631,1747427441066,-169.91561985,0.00016438,2]
[361291632,1747427441075,-400.0,0.00016438,2]
[361291633,1747427441084,-400.0,0.00016438,2]
[361291634,1747427441094,-400.0,0.00016438,2]
[361291635,1747427441104,-450.0,0.00016438,2]
[361291636,1747427441113,-400.0,0.00016438,2]
[361291637,1747427441123,-411.89,0.00016438,2]
[361291638,1747427441132,-400.0,0.00016438,2]
[361291639,1747427441142,-353.63789232,0.00016438,2]
[361291640,1747427441151,-400.0,0.00016438,2]
[361291641,1747427441161,-450.0,0.00016438,2]
[361291642,1747427441170,-174.23246794,0.00016438,2]
[361291643,1747427441180,-463.94,0.00016438,2]
[361291644,1747427441189,-400.0,0.00016438,2]
[361291645,1747427441198,-400.0,0.00016438,2]
[361291646,1747427441207,-450.0,0.00016438,2]
[361291647,1747427441217,-324.8056884,0.00016438,2]
[361291648,1747427441226,-450.0,0.00016438,2]
[361291649,1747427441235,-450.0,0.00016438,2]
[361291650,1747427441244,-400.0,0.00016438,2]
[361291651,1747427441253,-1620.43,0.00016438,2]
[361291652,1747427441263,-414.1,0.00016438,2]
[361291653,1747427441272,-213.25483401,0.00016438,2]
[361291654,1747427441281,-491.15,0.00016438,2]
[361291655,1747427441291,-1068.01,0.00016438,2]
[361291656,1747427441301,-450.0,0.00016438,2]
[361291657,1747427441310,-450.0,0.00016438,2]
[361291658,1747427441319,-431.19,0.00016438,2]
[361291659,1747427441329,-437.45,0.00016438,2]
[361291660,1747427441338,-400.0,0.00016438,2]
[361291661,1747427441347,-313.74558854,0.00016438,2]
[361291662,1747427441356,-400.0,0.00016438,2]
[361291663,1747427441366,-400.0,0.00016438,2]
[361291664,1747427441375,-583.2,0.00016438,2]
[361291665,1747427441384,-1307.16,0.00016438,2]
[361291666,1747427441394,-450.0,0.00016438,2]
[361291667,1747427441403,-450.5,0.00016438,2]
[361291668,1747427441412,-450.0,0.00016438,2]
[361291669,1747427441422,-724.75,0.00016438,2]
[361291670,1747427441431,-400.0,0.00016438,2]
[361291671,1747427441440,-400.0,0.00016438,2]
[361291672,1747427441450,-450.0,0.00016438,2]
[361291673,1747427441459,-400.0,0.00016438,2]
[361291674,1747427441469,-484.01,0.00016438,2]
[361291675,1747427441478,-400.0,0.00016438,2]
[361291676,1747427441487,-400.0,0.00016438,2]
[361291677,1747427441497,-450.0,0.00016438,2]
[361291678,1747427441506,-1056.16,0.00016438,2]
[361291679,1747427441515,-400.0,0.00016438,2]
[361291680,1747427441525,-400.0,0.00016438,2]
[361291681,1747427441534,-400.0,0.00016438,2]
[361291682,1747427441543,-450.0,0.00016438,2]
[361291683,1747427441553,-400.0,0.00016438,2]
[361291684,1747427441563,-595.36,0.00016438,2]
[361291685,1747427441572,-1325.86,0.00016438,2]
[361291686,1747427441582,-450.0,0.00016438,2]
[361291687,1747427441591,-500.0,0.00016438,2]
[361291688,1747427441600,-616.33765566,0.00016438,2]
[361291689,1747427441610,-686.55,0.00016438,2]
[361291690,1747427441620,-450.0,0.00016438,2]
[361291691,1747427441630,-400.0,0.00016438,2]
[361291692,1747427441643,-400.0,0.00016438,2]
[361291693,1747427441653,-400.0,0.00016438,2]
[361291694,1747427441663,-400.0,0.00016438,2]
[361291695,1747427441672,-537.40619917,0.00016438,2]
[361291696,1747427441682,-795.06,0.00016438,2]
[361291697,1747427441691,-400.0,0.00016438,2]
[361291698,1747427441701,-400.0,0.00016438,2]
[361291699,1747427441713,-554.19,0.00016438,2]
[361291700,1747427441722,-400.0,0.00016438,2]
[361291701,1747427441731,-497.39,0.00016438,2]
[361291702,1747427441740,-577.07,0.00016438,2]
[361291703,1747427441749,-400.0,0.00016438,2]
[361291704,1747427441758,-1032.5,0.00016438,2]
[361291705,1747427441767,-450.0,0.00016438,2]
[361291706,1747427441777,-400.0,0.00016438,2]
[361291707,1747427441786,-1000.0,0.00016438,2]
[361291708,1747427441795,-652.06,0.00016438,2]
[361291709,1747427441804,-400.0,0.00016438,2]
[361291710,1747427441813,-400.0,0.00016438,2]
[361291711,1747427441823,-400.0,0.00016438,2]
[361291712,1747427441832,-681.91,0.00016438,2]
[361291713,1747427441841,-400.0,0.00016438,2]
[361291714,1747427441852,-400.0,0.00016438,2]
[361291715,1747427441862,-400.0,0.00016438,2]
[361291716,1747427441873,-915.27,0.00016438,2]
[361291717,1747427441882,-964.96,0.00016438,2]
[361291718,1747427441891,-153.498791,0.00016438,2]
[361291719,1747427441901,-400.0,0.00016438,2]
[361291720,1747427441910,-400.0,0.00016438,2]
[361291721,1747427441920,-400.0,0.00016438,2]
[361291722,1747427441929,-757.46,0.00016438,2]
[361291723,1747427441939,-500.0,0.00016438,2]
[361291724,1747427441948,-400.0,0.00016438,2]
[361291725,1747427441958,-783.8,0.00016438,2]
[361291726,1747427441970,-539.06,0.00016438,2]
[361291727,1747427441980,-400.0,0.00016438,2]
[361291728,1747427441989,-1318.92,0.00016438,2]
[361291729,1747427442001,-400.0,0.00016438,2]
[361291730,1747427442011,-400.0,0.00016438,2]
[361291731,1747427442020,-912.6,0.00016438,2]
[361291732,1747427442030,-400.0,0.00016438,2]
[361291733,1747427442039,-400.0,0.00016438,2]
[361291734,1747427442049,-583.17,0.00016438,2]
[361291735,1747427442058,-400.0,0.00016438,2]
[361291736,1747427442068,-608.11,0.00016438,2]
[361291737,1747427442078,-291.449011,0.00016438,2]
[361291738,1747427442087,-986.85,0.00016438,2]
[361291739,1747427442096,-500.0,0.00016438,2]
[361291740,1747427442106,-400.0,0.00016438,2]
[361291741,1747427442115,-400.0,0.00016438,2]
[361291742,1747427442124,-1668.83,0.00016438,2]
[361291743,1747427442134,-400.0,0.00016438,2]
[361291744,1747427442143,-485.76,0.00016438,2]
[361291745,1747427442152,-606.04,0.00016438,2]
[361291746,1747427442162,-400.0,0.00016438,2]
[361291747,1747427442172,-444.26,0.00016438,2]
[361291748,1747427442182,-400.0,0.00016438,2]
[361291749,1747427442190,-634.11,0.00016438,2]
[361291750,1747427442200,-400.0,0.00016438,2]
[361291751,1747427442209,-400.0,0.00016438,2]
[361291752,1747427442219,-400.0,0.00016438,2]
[361291753,1747427442228,-1012.29,0.00016438,2]
[361291754,1747427442237,-400.0,0.00016438,2]
[361291755,1747427442246,-197.99575919,0.00016438,2]
[361291756,1747427442256,-400.0,0.00016438,2]
[361291757,1747427442266,-765.46,0.00016438,2]
[361291758,1747427442275,-400.0,0.00016438,2]
[361291759,1747427442295,-454.73,0.00016438,2]
[361291760,1747427442305,-481.94,0.00016438,2]
[361291761,1747427442315,-400.0,0.00016438,2]
[361291762,1747427442324,-400.0,0.00016438,2]
[361291763,1747427442334,-1110.67,0.00016438,2]
[361291764,1747427442344,-400.0,0.00016438,2]
[361291765,1747427442353,-1108.79,0.00016438,2]
[361291766,1747427442363,-473.9281514,0.00016438,2]
[361291767,1747427442373,-646.26,0.00016438,2]
[361291768,1747427442384,-171.820149,0.00016438,2]
[361291769,1747427442394,-506.31865301,0.00016438,2]
[361291770,1747427442404,-400.0,0.00016438,2]
[361291771,1747427442413,-400.0,0.00016438,2]
[361291772,1747427442423,-456.27,0.00016438,2]
[361291773,1747427442432,-1551.53,0.00016438,2]
[361291774,1747427442442,-803.72,0.00016438,2]
[361291775,1747427442452,-500.0,0.00016438,2]
[361291776,1747427442462,-500.0,0.00016438,2]
[361291777,1747427442472,-200.0,0.00016438,2]
[361291778,1747427442482,-161.08556222,0.00016438,2]
[361291779,1747427442492,-400.0,0.00016438,2]
[361291780,1747427442502,-471.4,0.00016438,2]
[361291781,1747427442511,-400.0,0.00016438,2]
[361291782,1747427442521,-156.99937034,0.00016438,2]
[361291783,1747427442531,-400.0,0.00016438,2]
[361291784,1747427442540,-400.0,0.00016438,2]
[361291785,1747427442550,-792.64,0.00016438,2]
[361291786,1747427442560,-400.0,0.00016438,2]
[361291787,1747427442569,-223.28199725,0.00016438,2]
[361291788,1747427442579,-500.0,0.00016438,2]
[361291789,1747427442588,-500.0,0.00016438,2]
[361291790,1747427442598,-500.0,0.00016438,2]
[361291791,1747427442608,-500.0,0.00016438,2]
[361291792,1747427442618,-500.0,0.00016438,2]
[361291793,1747427442628,-226.05787598,0.00016438,2]
[361291794,1747427442643,-500.0,0.00016438,2]
[361291795,1747427442653,-400.0,0.00016438,2]
[361291796,1747427442662,-400.0,0.00016438,2]
[361291797,1747427442672,-400.0,0.00016438,2]
[361291798,1747427442684,-574.06,0.00016438,2]
[361291799,1747427442694,-511.99,0.00016438,2]
[361291800,1747427442704,-400.0,0.00016438,2]
[361291801,1747427442715,-651.73,0.00016438,2]
[361291803,1747427442726,-400.0,0.00016438,2]
[361291805,1747427442735,-400.0,0.00016438,2]
[361291806,1747427442744,-400.0,0.00016438,2]
[361291807,1747427442754,-607.07,0.00016438,2]
[361291808,1747427442764,-400.0,0.00016438,2]
[361291809,1747427442774,-400.0,0.00016438,2]
[361291810,1747427442783,-540.97,0.00016438,2]
[361291811,1747427442793,-1186.8,0.00016438,2]
[361291812,1747427442802,-1356.01,0.00016438,2]
[361291813,1747427442812,-796.03,0.00016438,2]
[361291814,1747427442821,-150.0,0.00016438,2]
[361291815,1747427442831,-400.0,0.00016438,2]
[361291816,1747427442841,-183.18562027,0.00016438,2]
[361291817,1747427442850,-400.0,0.00016438,2]
[361291818,1747427442860,-400.0,0.00016438,2]
[361291819,1747427442870,-400.0,0.00016438,2]
[361291820,1747427442879,-400.0,0.00016438,2]
[361291821,1747427442889,-400.0,0.00016438,2]
[361291822,1747427442898,-172.87844236,0.00016438,2]
[361291823,1747427442908,-1164.22,0.00016438,2]
[361291824,1747427442918,-1398.99,0.00016438,2]
[361291825,1747427442928,-631.56,0.00016438,2]
[361291826,1747427442938,-656.97,0.00016438,2]
[361291827,1747427442947,-400.0,0.00016438,2]
[361291828,1747427442956,-400.0,0.00016438,2]
[361291829,1747427442966,-486.58963093,0.00016438,2]
[361291830,1747427442975,-195.52102972,0.00016438,2]
[361291831,1747427442985,-400.0,0.00016438,2]
[361291832,1747427442994,-676.3,0.00016438,2]
[361291833,1747427443004,-400.0,0.00016438,2]
[361291834,1747427443013,-445.04,0.00016438,2]
[361291835,1747427443024,-400.0,0.00016438,2]
[361291836,1747427443033,-982.65,0.00016438,2]
[361291837,1747427443043,-400.0,0.00016438,2]
[361291838,1747427443052,-922.06,0.00016438,2]
[361291839,1747427443062,-820.48,0.00016438,2]
[361291841,1747427443071,-400.0,0.00016438,2]
[361291843,1747427443081,-620.59,0.00016438,2]
[361291845,1747427443090,-400.0,0.00016438,2]
[361291847,1747427443100,-400.0,0.00016438,2]
[361291849,1747427443110,-450.0,0.00016438,2]
[361291851,1747427443119,-415.59,0.00016438,2]
[361291853,1747427443128,-400.0,0.00016438,2]
[361291855,1747427443137,-450.0,0.00016438,2]
[361291857,1747427443147,-532.1653734,0.00016438,2]
[361291859,1747427443156,-400.0,0.00016438,2]
[361291861,1747427443166,-793.65,0.00016438,2]
[361291863,1747427443175,-606.54,0.00016438,2]
[361291865,1747427443184,-400.0,0.00016438,2]
[361291867,1747427443193,-585.31,0.00016438,2]
[361291869,1747427443203,-400.0,0.00016438,2]
[361291871,1747427443212,-450.0,0.00016438,2]
[361291873,1747427443221,-400.0,0.00016438,2]
[361291875,1747427443230,-400.0,0.00016438,2]
[361291877,1747427443239,-400.0,0.00016438,2]
[361291879,1747427443248,-400.0,0.00016438,2]
[361291881,1747427443258,-1232.72,0.00016438,2]
[361291883,1747427443267,-450.0,0.00016438,2]
[361291885,1747427443276,-450.0,0.00016438,2]
[361291887,1747427443285,-457.49,0.00016438,2]
[361291889,1747427443294,-457.90277067,0.00016438,2]
[361291891,1747427443303,-400.0,0.00016438,2]
[361291893,1747427443313,-400.0,0.00016438,2]
[361291895,1747427443322,-1058.19,0.00016438,2]
[361291897,1747427443332,-400.0,0.00016438,2]
[361291899,1747427443341,-400.0,0.00016438,2]
[361291901,1747427443351,-802.65,0.00016438,2]
[361291903,1747427443360,-684.97,0.00016438,2]
[361291905,1747427443370,-410.06,0.00016438,2]
[361291907,1747427443379,-207.37459251,0.00016438,2]
[361291909,1747427443388,-533.79,0.00016438,2]
[361291911,1747427443398,-400.0,0.00016438,2]
[361291913,1747427443408,-536.94,0.00016438,2]
[361291915,1747427443418,-312.85034382,0.00016438,2]
[361291917,1747427443427,-1209.5,0.00016438,2]
[361291919,1747427443436,-400.0,0.00016438,2]
[361291921,1747427443446,-715.52,0.00016438,2]
[361291923,1747427443455,-521.99899796,0.00016438,2]
[361291925,1747427443465,-859.08,0.00016438,2]
[361291927,1747427443475,-538.44,0.00016438,2]
[361291929,1747427443484,-400.0,0.00016438,2]
[361291931,1747427443493,-400.0,0.00016438,2]
[361291933,1747427443502,-400.0,0.00016438,2]
[361291935,1747427443512,-400.0,0.00016438,2]
[361291937,1747427443521,-400.0,0.00016438,2]
[361291939,1747427443531,-400.0,0.00016438,2]
[361291941,1747427443540,-539.54,0.00016438,2]
[361291942,1747427443549,-935.55,0.00016438,2]
[361291945,1747427443559,-400.0,0.00016438,2]
[361291946,1747427443568,-400.0,0.00016438,2]
[361291948,1747427443577,-633.53,0.00016438,2]
[361291950,1747427443587,-1171.7,0.00016438,2]
[361291952,1747427443596,-488.14,0.00016438,2]
[361291955,1747427443606,-400.0,0.00016438,2]
[361291957,1747427443616,-740.52,0.00016438,2]
[361291959,1747427443625,-1098.6,0.00016438,2]
[361291961,1747427443637,-439.01,0.00016438,2]
[361291963,1747427443646,-400.0,0.00016438,2]
[361291965,1747427443655,-1033.15,0.00016438,2]
[361291966,1747427443665,-870.97,0.00016438,2]
[361291969,1747427443675,-400.0,0.00016438,2]
[361291971,1747427443685,-400.0,0.00016438,2]
[361291973,1747427443695,-400.0,0.00016438,2]
[361291975,1747427443704,-656.33,0.00016438,2]
[361291977,1747427443715,-1382.99,0.00016438,2]
[361291979,1747427443725,-2132.72,0.00016438,2]
[361291981,1747427443734,-400.0,0.00016438,2]
[361291983,1747427443743,-1235.96,0.00016438,2]
[361291985,1747427443751,-400.0,0.00016438,2]
[361291987,1747427443761,-400.0,0.00016438,2]
[361291989,1747427443770,-625.31,0.00016438,2]
[361291991,1747427443779,-531.13,0.00016438,2]
[361291993,1747427443789,-400.0,0.00016438,2]
[361291995,1747427443799,-400.0,0.00016438,2]
[361291997,1747427443808,-400.0,0.00016438,2]
[361291999,1747427443818,-491.6,0.00016438,2]
[361292001,1747427443827,-891.81,0.00016438,2]
[361292003,1747427443836,-244.20673521,0.00016438,2]
[361292005,1747427443845,-474.97,0.00016438,2]
[361292007,1747427443854,-400.0,0.00016438,2]
[361292009,1747427443863,-450.0,0.00016438,2]
[361292011,1747427443873,-512.16,0.00016438,2]
[361292013,1747427443882,-400.0,0.00016438,2]
[361292015,1747427443891,-474.91,0.00016438,2]
[361292017,1747427443900,-400.0,0.00016438,2]
[361292019,1747427443910,-311.30781331,0.00016438,2]
[361292021,1747427443919,-500.0,0.00016438,2]
[361292022,1747427443928,-571.36,0.00016438,2]
[361292023,1747427443937,-500.0,0.00016438,2]
[361292024,1747427443946,-500.0,0.00016438,2]
[361292025,1747427443956,-500.0,0.00016438,2]
[361292026,1747427443965,-2431.4,0.00016438,2]
[361292027,1747427443975,-412.91,0.00016438,2]
[361292028,1747427443984,-400.0,0.00016438,2]
[361292029,1747427443994,-400.0,0.00016438,2]
[361292030,1747427444003,-527.94,0.00016438,2]
[361292031,1747427444013,-400.0,0.00016438,2]
[361292032,1747427444022,-400.0,0.00016438,2]